[Event "Late-Titled-Tuesday-Blitz-March-26-2024"]
[Site "Chess.com"]
[Date "2024.03.26"]
[Round "7"]
[White "Iuckyducky"]
[Black "EternalNight8"]
[Result "0-1"]
[WhiteElo "2307"]
[BlackElo "2451"]
[TimeControl "180+1"]
[EndTime "15:18:12 PDT"]
[Termination "EternalNight8 won by resignation"]

1. e4 {[%clk 0:02:57.9]} 1... c5 {[%clk 0:02:58.2]} 2. Nf3 {[%clk 0:02:56.9]}
2... d6 {[%clk 0:02:58.7]} 3. c3 {[%clk 0:02:53.4]} 3... Nf6 {[%clk 0:02:58.5]}
4. Bd3 {[%clk 0:02:48.6]} 4... a6 {[%clk 0:02:54.9]} 5. h3 {[%clk 0:02:47.7]}
5... e6 {[%clk 0:02:51.7]} 6. O-O {[%clk 0:02:34.8]} 6... Be7 {[%clk 0:02:48.1]}
7. Bc2 {[%clk 0:02:26]} 7... c4 {[%clk 0:02:21.1]} 8. a4 {[%clk 0:02:14.2]} 8...
Nc6 {[%clk 0:02:08.6]} 9. Na3 {[%clk 0:02:08.9]} 9... d5 {[%clk 0:02:08.3]} 10.
exd5 {[%clk 0:02:02.2]} 10... exd5 {[%clk 0:02:08]} 11. d3 {[%clk 0:01:57.4]}
11... cxd3 {[%clk 0:02:00.2]} 12. Qxd3 {[%clk 0:01:54.8]} 12... Be6 {[%clk
0:01:37.7]} 13. Re1 {[%clk 0:01:53.9]} 13... Qd7 {[%clk 0:01:29.1]} 14. Ng5
{[%clk 0:01:52.8]} 14... O-O-O {[%clk 0:00:58.1]} 15. Bf4 {[%clk 0:01:46.3]}
15... Bd6 {[%clk 0:00:52.4]} 16. Qf3 {[%clk 0:01:11.3]} 16... h6 {[%clk
0:00:47.4]} 17. Nxe6 {[%clk 0:01:11.3]} 17... fxe6 {[%clk 0:00:47.9]} 18. Bxd6
{[%clk 0:01:11.4]} 18... Qxd6 {[%clk 0:00:48.5]} 19. Rxe6 {[%clk 0:01:11.9]}
19... Qc7 {[%clk 0:00:42.1]} 20. Rae1 {[%clk 0:01:06.2]} 20... Kb8 {[%clk
0:00:40.8]} 21. b4 {[%clk 0:01:00.7]} 21... Rhf8 {[%clk 0:00:35.4]} 22. Qe2
{[%clk 0:00:53.6]} 22... Rfe8 {[%clk 0:00:16.2]} 23. b5 {[%clk 0:00:49.8]} 23...
Rxe6 {[%clk 0:00:13.5]} 24. Qxe6 {[%clk 0:00:49.9]} 24... Re8 {[%clk 0:00:09.5]}
25. Qxe8+ {[%clk 0:00:43.2]} 25... Nxe8 {[%clk 0:00:10.4]} 26. Rxe8+ {[%clk
0:00:43.7]} 26... Ka7 {[%clk 0:00:11.1]} 27. bxc6 {[%clk 0:00:30.6]} 27... Qxc6
{[%clk 0:00:12]} 28. Re3 {[%clk 0:00:31]} 28... Qc5 {[%clk 0:00:10.9]} 29. Nb1
{[%clk 0:00:28.7]} 29... d4 {[%clk 0:00:09.1]} 30. Rd3 {[%clk 0:00:22.5]} 30...
dxc3 {[%clk 0:00:09.4]} 31. Rxc3 {[%clk 0:00:23]} 31... Qb4 {[%clk 0:00:09.4]}
32. Kh2 {[%clk 0:00:19.8]} 32... Qd6+ {[%clk 0:00:06.8]} 33. g3 {[%clk
0:00:18.9]} 33... b5 {[%clk 0:00:06.6]} 34. axb5 {[%clk 0:00:18.8]} 34... axb5
{[%clk 0:00:07.5]} 35. Ra3+ {[%clk 0:00:14.7]} 35... Kb6 {[%clk 0:00:07.4]} 36.
Bd3 {[%clk 0:00:13.6]} 36... Qc5 {[%clk 0:00:05.4]} 37. Kg2 {[%clk 0:00:12.1]}
37... b4 {[%clk 0:00:04.8]} 38. Rb3 {[%clk 0:00:11.8]} 38... Qd5+ {[%clk
0:00:04.3]} 0-1

[Event "Late-Titled-Tuesday-Blitz-March-26-2024"]
[Site "Chess.com"]
[Date "2024.03.26"]
[Round "7"]
[White "ImportedItalianMaple"]
[Black "jstopa4"]
[Result "0-1"]
[WhiteElo "2517"]
[BlackElo "2734"]
[TimeControl "180+1"]
[EndTime "15:18:15 PDT"]
[Termination "jstopa4 won on time"]

1. Nf3 {[%clk 0:03:00.9]} 1... Nf6 {[%clk 0:02:52.4]} 2. g3 {[%clk 0:03:01.2]}
2... d5 {[%clk 0:02:52.2]} 3. Bg2 {[%clk 0:03:00.9]} 3... c6 {[%clk 0:02:52.5]}
4. O-O {[%clk 0:03:00]} 4... g6 {[%clk 0:02:52.5]} 5. d4 {[%clk 0:02:55.1]} 5...
Bg7 {[%clk 0:02:52.4]} 6. a4 {[%clk 0:02:54.2]} 6... a5 {[%clk 0:02:50.8]} 7. c4
{[%clk 0:02:53.1]} 7... O-O {[%clk 0:02:38.3]} 8. cxd5 {[%clk 0:02:45.7]} 8...
Nxd5 {[%clk 0:02:37.1]} 9. e4 {[%clk 0:02:42.8]} 9... Nb4 {[%clk 0:02:37.1]} 10.
h3 {[%clk 0:02:38]} 10... b6 {[%clk 0:02:28.6]} 11. Re1 {[%clk 0:02:30.6]} 11...
Ba6 {[%clk 0:02:28.3]} 12. Bf1 {[%clk 0:02:31.2]} 12... Bxf1 {[%clk 0:02:26]}
13. Kxf1 {[%clk 0:02:32.1]} 13... Qd7 {[%clk 0:02:19.2]} 14. Kg2 {[%clk
0:02:30.2]} 14... Rd8 {[%clk 0:02:19.5]} 15. Be3 {[%clk 0:02:27.8]} 15... N8a6
{[%clk 0:02:11.2]} 16. Na3 {[%clk 0:02:23.8]} 16... Rab8 {[%clk 0:01:54.7]} 17.
Qd2 {[%clk 0:02:10.6]} 17... Nc7 {[%clk 0:01:41.4]} 18. Nc4 {[%clk 0:02:06.6]}
18... Ne6 {[%clk 0:01:27.8]} 19. Rad1 {[%clk 0:01:39.9]} 19... c5 {[%clk
0:01:26.6]} 20. dxc5 {[%clk 0:01:25.5]} 20... Qxa4 {[%clk 0:01:26.2]} 21. Nxb6
{[%clk 0:01:16.1]} 21... Qa2 {[%clk 0:00:52]} 22. Nd5 {[%clk 0:01:09.5]} 22...
Nxd5 {[%clk 0:00:43.5]} 23. exd5 {[%clk 0:01:08.5]} 23... Rxb2 {[%clk
0:00:43.6]} 24. Qd3 {[%clk 0:00:59.5]} 24... Nc7 {[%clk 0:00:36]} 25. d6 {[%clk
0:00:51.6]} 25... exd6 {[%clk 0:00:36.1]} 26. cxd6 {[%clk 0:00:52.5]} 26... Ne6
{[%clk 0:00:36.4]} 27. d7 {[%clk 0:00:39.5]} 27... a4 {[%clk 0:00:34.8]} 28. Qd6
{[%clk 0:00:36.2]} 28... Bf8 {[%clk 0:00:30.7]} 29. Qa6 {[%clk 0:00:32.9]} 29...
a3 {[%clk 0:00:29.9]} 30. Bb6 {[%clk 0:00:22.1]} 30... Bc5 {[%clk 0:00:17.6]}
31. Bxc5 {[%clk 0:00:18.2]} 31... Nxc5 {[%clk 0:00:17.7]} 32. Re8+ {[%clk
0:00:13.9]} 32... Kg7 {[%clk 0:00:17.7]} 33. Qf1 {[%clk 0:00:06.6]} 33... Rxd7
{[%clk 0:00:17.9]} 34. Rxd7 {[%clk 0:00:04.8]} 34... Nxd7 {[%clk 0:00:18.8]} 35.
Re7 {[%clk 0:00:05.5]} 35... Qd5 {[%clk 0:00:16.7]} 36. Qe1 {[%clk 0:00:02.9]}
36... Rb3 {[%clk 0:00:15.2]} 37. Qe2 {[%clk 0:00:02.7]} 37... a2 {[%clk
0:00:13.6]} 0-1

[Event "Late-Titled-Tuesday-Blitz-March-26-2024"]
[Site "Chess.com"]
[Date "2024.03.26"]
[Round "7"]
[White "rezamahdavi2008"]
[Black "Polish_fighter3000"]
[Result "0-1"]
[WhiteElo "2874"]
[BlackElo "3123"]
[TimeControl "180+1"]
[EndTime "15:18:16 PDT"]
[Termination "Polish_fighter3000 won by resignation"]

1. e4 {[%clk 0:03:00.9]} 1... e5 {[%clk 0:02:58.2]} 2. Nf3 {[%clk 0:03:00.6]}
2... Nc6 {[%clk 0:02:58.8]} 3. Nc3 {[%clk 0:03:01.3]} 3... Nf6 {[%clk
0:02:53.3]} 4. d4 {[%clk 0:03:01.5]} 4... exd4 {[%clk 0:02:53.2]} 5. Nxd4 {[%clk
0:03:02.4]} 5... Bb4 {[%clk 0:02:49.6]} 6. Nxc6 {[%clk 0:03:02.8]} 6... bxc6
{[%clk 0:02:50.5]} 7. Bd3 {[%clk 0:03:03.3]} 7... O-O {[%clk 0:02:50.1]} 8. O-O
{[%clk 0:03:03.7]} 8... Re8 {[%clk 0:02:50.7]} 9. Bg5 {[%clk 0:03:02.5]} 9... h6
{[%clk 0:02:49]} 10. Bh4 {[%clk 0:03:01.7]} 10... g5 {[%clk 0:02:46.1]} 11. Bg3
{[%clk 0:02:59.6]} 11... Bxc3 {[%clk 0:02:46.4]} 12. bxc3 {[%clk 0:02:59.7]}
12... Nxe4 {[%clk 0:02:46.5]} 13. Qh5 {[%clk 0:02:59.8]} 13... d6 {[%clk
0:02:26.5]} 14. Rae1 {[%clk 0:02:51.4]} 14... Bf5 {[%clk 0:02:11.3]} 15. Qxh6
{[%clk 0:02:42.3]} 15... Re6 {[%clk 0:02:02.8]} 16. Qh5 {[%clk 0:02:39.5]} 16...
Bg6 {[%clk 0:02:01.1]} 17. Qg4 {[%clk 0:02:28.1]} 17... f5 {[%clk 0:01:36.1]}
18. Qf3 {[%clk 0:02:26.7]} 18... d5 {[%clk 0:01:30.9]} 19. h3 {[%clk 0:02:16.2]}
19... Qf6 {[%clk 0:01:17.5]} 20. Re2 {[%clk 0:02:12.5]} 20... Qf7 {[%clk
0:00:56.7]} 21. Bh2 {[%clk 0:01:49.5]} 21... f4 {[%clk 0:00:47.2]} 22. h4 {[%clk
0:01:38.8]} 22... Rf8 {[%clk 0:00:29.9]} 23. g4 {[%clk 0:01:23.2]} 23... gxh4
{[%clk 0:00:27]} 24. Kh1 {[%clk 0:01:01.7]} 24... Ng5 {[%clk 0:00:20.5]} 25.
Rxe6 {[%clk 0:01:01.8]} 25... Qxe6 {[%clk 0:00:16.5]} 26. Qd1 {[%clk 0:00:59.8]}
26... Bxd3 {[%clk 0:00:03.9]} 27. cxd3 {[%clk 0:00:58.3]} 27... f3 {[%clk
0:00:03.9]} 28. Re1 {[%clk 0:00:56.6]} 28... Qd7 {[%clk 0:00:02.5]} 29. Qd2
{[%clk 0:00:55.8]} 29... Nh3 {[%clk 0:00:02]} 30. Qh6 {[%clk 0:00:20.4]} 30...
Nxf2+ {[%clk 0:00:02.1]} 31. Kg1 {[%clk 0:00:19.3]} 31... Nh3+ {[%clk 0:00:03]}
32. Kf1 {[%clk 0:00:19]} 32... Qxg4 {[%clk 0:00:03.6]} 33. Qe6+ {[%clk
0:00:18.8]} 33... Qxe6 {[%clk 0:00:03.5]} 34. Rxe6 {[%clk 0:00:19.7]} 34... c5
{[%clk 0:00:01.9]} 35. Bxc7 {[%clk 0:00:16.6]} 35... Kf7 {[%clk 0:00:01.8]} 36.
Rh6 {[%clk 0:00:15.8]} 36... Rg8 {[%clk 0:00:01.8]} 37. Bh2 {[%clk 0:00:12]}
37... Rg2 {[%clk 0:00:02.2]} 0-1

[Event "Late-Titled-Tuesday-Blitz-March-26-2024"]
[Site "Chess.com"]
[Date "2024.03.26"]
[Round "7"]
[White "Bala-Afiada"]
[Black "egnfanclub"]
[Result "0-1"]
[WhiteElo "1874"]
[BlackElo "2377"]
[TimeControl "180+1"]
[EndTime "15:18:16 PDT"]
[Termination "egnfanclub won by resignation"]

1. d4 {[%clk 0:03:00.9]} 1... d5 {[%clk 0:02:58.6]} 2. c4 {[%clk 0:02:59.6]}
2... c6 {[%clk 0:02:59]} 3. Nf3 {[%clk 0:02:58.7]} 3... Nf6 {[%clk 0:02:59.4]}
4. Qc2 {[%clk 0:02:57.6]} 4... e6 {[%clk 0:02:59.7]} 5. g3 {[%clk 0:02:58.1]}
5... dxc4 {[%clk 0:02:52]} 6. Qxc4 {[%clk 0:02:57.9]} 6... b5 {[%clk 0:02:52]}
7. Qc2 {[%clk 0:02:58.1]} 7... Bb7 {[%clk 0:02:52]} 8. Bg2 {[%clk 0:02:58.2]}
8... Na6 {[%clk 0:02:51.1]} 9. O-O {[%clk 0:02:53.2]} 9... Nb4 {[%clk
0:02:50.8]} 10. Qb3 {[%clk 0:02:46]} 10... a5 {[%clk 0:02:49.6]} 11. a3 {[%clk
0:02:45.8]} 11... a4 {[%clk 0:02:50]} 12. Qd1 {[%clk 0:02:45.9]} 12... Nbd5
{[%clk 0:02:49.8]} 13. Nc3 {[%clk 0:02:39.8]} 13... Nxc3 {[%clk 0:02:50]} 14.
bxc3 {[%clk 0:02:39.7]} 14... Be7 {[%clk 0:02:43.9]} 15. Ne5 {[%clk 0:02:39.1]}
15... Nd5 {[%clk 0:02:39.3]} 16. Qc2 {[%clk 0:02:34.6]} 16... f6 {[%clk
0:02:30.5]} 17. Nd3 {[%clk 0:02:14.5]} 17... O-O {[%clk 0:02:19.3]} 18. e4
{[%clk 0:02:13.9]} 18... Nb6 {[%clk 0:02:19]} 19. e5 {[%clk 0:02:07.8]} 19... f5
{[%clk 0:02:15.6]} 20. Nf4 {[%clk 0:02:07.8]} 20... Qd7 {[%clk 0:02:12.3]} 21.
Qe2 {[%clk 0:01:34.7]} 21... Nd5 {[%clk 0:01:53.8]} 22. Bd2 {[%clk 0:01:07.2]}
22... Nxf4 {[%clk 0:01:52.2]} 23. Bxf4 {[%clk 0:01:03]} 23... g5 {[%clk
0:01:51.1]} 24. Bd2 {[%clk 0:00:56.2]} 24... Rad8 {[%clk 0:01:42.6]} 25. Qh5
{[%clk 0:00:55.3]} 25... f4 {[%clk 0:01:38.2]} 26. gxf4 {[%clk 0:00:36.8]} 26...
gxf4 {[%clk 0:01:39.1]} 27. Be4 {[%clk 0:00:36.8]} 27... Rf7 {[%clk 0:01:37.7]}
28. Kh1 {[%clk 0:00:33.4]} 28... Bf8 {[%clk 0:01:25.2]} 29. Rg1+ {[%clk
0:00:30.7]} 29... Kh8 {[%clk 0:01:24.9]} 30. Qf3 {[%clk 0:00:10.9]} 30... c5
{[%clk 0:01:18.1]} 31. Bxb7 {[%clk 0:00:10.3]} 31... Qxb7 {[%clk 0:01:18.7]} 32.
Qxb7 {[%clk 0:00:10.1]} 32... Rxb7 {[%clk 0:01:19.6]} 33. Bxf4 {[%clk
0:00:09.2]} 33... cxd4 {[%clk 0:01:20]} 34. cxd4 {[%clk 0:00:08.9]} 34... Rxd4
{[%clk 0:01:19]} 35. Bg5 {[%clk 0:00:06]} 35... Bg7 {[%clk 0:01:17.8]} 36. Bf6
{[%clk 0:00:06.6]} 36... Bxf6 {[%clk 0:01:11.6]} 37. exf6 {[%clk 0:00:07.5]}
37... Rf4 {[%clk 0:01:12]} 38. Rac1 {[%clk 0:00:04.5]} 38... Rb8 {[%clk
0:01:11.9]} 39. Rc6 {[%clk 0:00:04.1]} 39... Rxf6 {[%clk 0:01:11.5]} 40. Re1
{[%clk 0:00:04.8]} 40... Rxf2 {[%clk 0:01:04.5]} 41. Rcxe6 {[%clk 0:00:04.3]}
41... Rf3 {[%clk 0:01:02.8]} 42. Re8+ {[%clk 0:00:03.7]} 42... Rxe8 {[%clk
0:01:02.5]} 43. Rxe8+ {[%clk 0:00:04.6]} 43... Kg7 {[%clk 0:01:03.3]} 44. Re7+
{[%clk 0:00:05.2]} 44... Kg6 {[%clk 0:01:03.2]} 45. Rb7 {[%clk 0:00:06.1]} 45...
Rb3 {[%clk 0:01:01]} 46. Rb6+ {[%clk 0:00:06.5]} 46... Kf5 {[%clk 0:01:01]} 47.
Kg2 {[%clk 0:00:06.5]} 47... h5 {[%clk 0:00:57.6]} 48. Rb7 {[%clk 0:00:06.2]}
48... h4 {[%clk 0:00:57.9]} 49. Rb6 {[%clk 0:00:06.4]} 49... h3+ {[%clk
0:00:57.9]} 50. Kf2 {[%clk 0:00:06.4]} 50... Ke5 {[%clk 0:00:58.6]} 51. Ke2
{[%clk 0:00:06.4]} 51... Kd5 {[%clk 0:00:59.1]} 52. Rb7 {[%clk 0:00:06.5]} 52...
Kc4 {[%clk 0:00:59]} 53. Rc7+ {[%clk 0:00:06.8]} 53... Kd4 {[%clk 0:00:59.1]}
54. Rd7+ {[%clk 0:00:07.2]} 54... Kc3 {[%clk 0:00:59.2]} 55. Rc7+ {[%clk
0:00:07.9]} 55... Kb2 {[%clk 0:00:59.5]} 56. Kd2 {[%clk 0:00:08]} 56... Kxa3
{[%clk 0:00:59.9]} 57. Rc5 {[%clk 0:00:07.7]} 57... b4 {[%clk 0:00:59.9]} 58.
Rh5 {[%clk 0:00:07.3]} 58... Rb2+ {[%clk 0:01:00.2]} 59. Kc1 {[%clk 0:00:07.6]}
59... Rxh2 {[%clk 0:01:01.1]} 60. Rb5 {[%clk 0:00:07.6]} 60... b3 {[%clk
0:01:01.6]} 0-1

[Event "Late-Titled-Tuesday-Blitz-March-26-2024"]
[Site "Chess.com"]
[Date "2024.03.26"]
[Round "7"]
[White "dolynachess"]
[Black "Karttunen"]
[Result "0-1"]
[WhiteElo "2512"]
[BlackElo "2706"]
[TimeControl "180+1"]
[EndTime "15:18:20 PDT"]
[Termination "Karttunen won on time"]

1. d4 {[%clk 0:03:00.9]} 1... Nf6 {[%clk 0:02:59.8]} 2. c4 {[%clk 0:02:59.7]}
2... e6 {[%clk 0:02:59.9]} 3. g3 {[%clk 0:02:59.3]} 3... d5 {[%clk 0:02:59.6]}
4. Bg2 {[%clk 0:02:59.7]} 4... Bb4+ {[%clk 0:02:57.5]} 5. Nd2 {[%clk 0:02:59]}
5... a5 {[%clk 0:02:54]} 6. Nf3 {[%clk 0:02:55.3]} 6... dxc4 {[%clk 0:02:51.1]}
7. Qc2 {[%clk 0:02:55.5]} 7... b5 {[%clk 0:02:48.7]} 8. a4 {[%clk 0:02:51.8]}
8... c6 {[%clk 0:02:45.6]} 9. Ne5 {[%clk 0:02:23.4]} 9... Nd5 {[%clk 0:02:34]}
10. O-O {[%clk 0:02:14.4]} 10... f6 {[%clk 0:02:33.4]} 11. Nef3 {[%clk
0:02:07.8]} 11... Ba6 {[%clk 0:02:21.7]} 12. e4 {[%clk 0:01:34.2]} 12... Nb6
{[%clk 0:02:21.1]} 13. b3 {[%clk 0:01:26.5]} 13... cxb3 {[%clk 0:02:08.4]} 14.
Qxb3 {[%clk 0:01:22.5]} 14... bxa4 {[%clk 0:02:01]} 15. Qxe6+ {[%clk 0:01:20.7]}
15... Qe7 {[%clk 0:02:00.9]} 16. Qg4 {[%clk 0:01:00.4]} 16... Bxf1 {[%clk
0:01:49.6]} 17. Bxf1 {[%clk 0:01:01.3]} 17... O-O {[%clk 0:01:48.9]} 18. Nc4
{[%clk 0:00:39.5]} 18... N8d7 {[%clk 0:01:38]} 19. Nh4 {[%clk 0:00:37.3]} 19...
Kh8 {[%clk 0:01:18.9]} 20. Qh5 {[%clk 0:00:30.5]} 20... Qe8 {[%clk 0:00:55.4]}
21. Qg4 {[%clk 0:00:22.8]} 21... Nxc4 {[%clk 0:00:52.3]} 22. Bxc4 {[%clk
0:00:22.2]} 22... Nb6 {[%clk 0:00:47.5]} 23. Be6 {[%clk 0:00:15.1]} 23... Ra7
{[%clk 0:00:47.5]} 24. Be3 {[%clk 0:00:10]} 24... g5 {[%clk 0:00:42]} 25. Nf5
{[%clk 0:00:07.7]} 25... Qxe6 {[%clk 0:00:41.5]} 26. d5 {[%clk 0:00:06.7]} 26...
cxd5 {[%clk 0:00:39]} 27. exd5 {[%clk 0:00:07]} 27... Qxd5 {[%clk 0:00:32.5]}
28. Bxb6 {[%clk 0:00:06.8]} 28... Rb7 {[%clk 0:00:30.7]} 29. Bd4 {[%clk
0:00:05.2]} 29... Bc5 {[%clk 0:00:17.4]} 30. Bc3 {[%clk 0:00:03.1]} 30... Bb4
{[%clk 0:00:17]} 31. Bd4 {[%clk 0:00:03.1]} 31... Bc5 {[%clk 0:00:14.9]} 32. Bc3
{[%clk 0:00:03.4]} 32... Bd6 {[%clk 0:00:10.3]} 33. Qxg5 {[%clk 0:00:02.7]}
33... Be5 {[%clk 0:00:10.2]} 34. Bxe5 {[%clk 0:00:02.7]} 34... Qxe5 {[%clk
0:00:10.2]} 35. Qh5 {[%clk 0:00:03]} 35... Rb5 {[%clk 0:00:09.1]} 36. Qh6 {[%clk
0:00:02.7]} 36... Rg8 {[%clk 0:00:08.6]} 37. Ne3 {[%clk 0:00:02]} 37... Qxa1+
{[%clk 0:00:08.4]} 38. Kg2 {[%clk 0:00:01.7]} 38... Qe5 {[%clk 0:00:09]} 39. Qh5
{[%clk 0:00:01.8]} 39... Qxh5 {[%clk 0:00:09.1]} 0-1

[Event "Late-Titled-Tuesday-Blitz-March-26-2024"]
[Site "Chess.com"]
[Date "2024.03.26"]
[Round "7"]
[White "a-z30"]
[Black "NMJeevanK"]
[Result "1/2-1/2"]
[WhiteElo "2478"]
[BlackElo "2615"]
[TimeControl "180+1"]
[EndTime "15:18:21 PDT"]
[Termination "Game drawn by repetition"]

1. d3 {[%clk 0:03:00.9]} 1... h6 {[%clk 0:02:59.7]} 2. Nf3 {[%clk 0:03:01.5]}
2... Nf6 {[%clk 0:02:59.2]} 3. g3 {[%clk 0:03:02]} 3... d5 {[%clk 0:02:59.7]} 4.
Bg2 {[%clk 0:03:02.7]} 4... c5 {[%clk 0:02:59.7]} 5. O-O {[%clk 0:03:03.4]} 5...
Nc6 {[%clk 0:02:59.2]} 6. c4 {[%clk 0:03:04.3]} 6... d4 {[%clk 0:02:59]} 7. e3
{[%clk 0:03:04.4]} 7... e5 {[%clk 0:02:57.5]} 8. exd4 {[%clk 0:03:05.3]} 8...
exd4 {[%clk 0:02:58.3]} 9. Qa4 {[%clk 0:02:54]} 9... Bd7 {[%clk 0:02:49.6]} 10.
Qb3 {[%clk 0:02:50.2]} 10... Rb8 {[%clk 0:02:42.4]} 11. Bf4 {[%clk 0:02:48.1]}
11... Rc8 {[%clk 0:02:38.6]} 12. Re1+ {[%clk 0:02:13.2]} 12... Be7 {[%clk
0:02:38.3]} 13. Ne5 {[%clk 0:01:39.9]} 13... O-O {[%clk 0:02:33.9]} 14. Nxc6
{[%clk 0:01:27.7]} 14... bxc6 {[%clk 0:02:20.1]} 15. Qa3 {[%clk 0:01:05.1]}
15... Re8 {[%clk 0:01:54.6]} 16. h3 {[%clk 0:00:35.4]} 16... Bf5 {[%clk
0:01:51.3]} 17. g4 {[%clk 0:00:34]} 17... Bg6 {[%clk 0:01:48.8]} 18. Nd2 {[%clk
0:00:33.8]} 18... Qd7 {[%clk 0:01:46.5]} 19. Ne4 {[%clk 0:00:24.4]} 19... Nxe4
{[%clk 0:01:38.2]} 20. Bxe4 {[%clk 0:00:25.3]} 20... f5 {[%clk 0:01:35.3]} 21.
Bf3 {[%clk 0:00:21.6]} 21... Bh4 {[%clk 0:01:32.7]} 22. Qxc5 {[%clk 0:00:16.5]}
22... Rxe1+ {[%clk 0:01:26.5]} 23. Rxe1 {[%clk 0:00:15.9]} 23... Re8 {[%clk
0:01:27.2]} 24. Rxe8+ {[%clk 0:00:14.6]} 24... Qxe8 {[%clk 0:01:27.2]} 25. Qxd4
{[%clk 0:00:14.5]} 25... fxg4 {[%clk 0:01:20.6]} 26. hxg4 {[%clk 0:00:15.4]}
26... Bf6 {[%clk 0:01:17]} 27. Qd6 {[%clk 0:00:13.6]} 27... Bh4 {[%clk
0:01:08.9]} 28. Kg2 {[%clk 0:00:11.8]} 28... Qe1 {[%clk 0:01:05.6]} 29. Bg3
{[%clk 0:00:10.6]} 29... Bxg3 {[%clk 0:01:03.4]} 30. Qxg3 {[%clk 0:00:08.8]}
30... Bxd3 {[%clk 0:01:03.3]} 31. Qb8+ {[%clk 0:00:07.8]} 31... Kh7 {[%clk
0:01:02.7]} 32. Qxa7 {[%clk 0:00:07.8]} 32... Qf1+ {[%clk 0:00:58.1]} 33. Kg3
{[%clk 0:00:07.3]} 33... Qg1+ {[%clk 0:00:58]} 34. Kf4 {[%clk 0:00:06.4]} 34...
Qh2+ {[%clk 0:00:56.1]} 35. Ke3 {[%clk 0:00:06]} 35... Bg6 {[%clk 0:00:45.5]}
36. Qd4 {[%clk 0:00:05.6]} 36... Qc7 {[%clk 0:00:43.2]} 37. Be4 {[%clk
0:00:04.7]} 37... Qe7 {[%clk 0:00:37.8]} 38. f3 {[%clk 0:00:04.7]} 38... c5
{[%clk 0:00:34]} 39. Qd5 {[%clk 0:00:04.6]} 39... Kh8 {[%clk 0:00:28]} 40. Kd3
{[%clk 0:00:05.5]} 40... Bf7 {[%clk 0:00:27.4]} 41. Qa8+ {[%clk 0:00:04.4]}
41... Be8 {[%clk 0:00:16.1]} 42. Qd5 {[%clk 0:00:04.3]} 42... Bf7 {[%clk
0:00:15.7]} 43. Qa8+ {[%clk 0:00:02.5]} 43... Be8 {[%clk 0:00:15.9]} 44. Qd5
{[%clk 0:00:02.5]} 44... Bf7 {[%clk 0:00:15.7]} 1/2-1/2

[Event "Late-Titled-Tuesday-Blitz-March-26-2024"]
[Site "Chess.com"]
[Date "2024.03.26"]
[Round "7"]
[White "TimGrutter03"]
[Black "Harsha_Bharathakoti"]
[Result "0-1"]
[WhiteElo "2609"]
[BlackElo "2909"]
[TimeControl "180+1"]
[EndTime "15:18:22 PDT"]
[Termination "Harsha_Bharathakoti won on time"]

1. e4 {[%clk 0:03:00.9]} 1... c5 {[%clk 0:02:58.6]} 2. Nf3 {[%clk 0:03:00.8]}
2... Nc6 {[%clk 0:02:58.6]} 3. d4 {[%clk 0:02:59.1]} 3... cxd4 {[%clk
0:02:59.5]} 4. Nxd4 {[%clk 0:02:59.9]} 4... e6 {[%clk 0:03:00.1]} 5. Nc3 {[%clk
0:02:58.1]} 5... a6 {[%clk 0:03:00.6]} 6. g3 {[%clk 0:02:58]} 6... b5 {[%clk
0:02:57.5]} 7. Nxc6 {[%clk 0:02:53.5]} 7... dxc6 {[%clk 0:02:57.6]} 8. Qxd8+
{[%clk 0:02:54.1]} 8... Kxd8 {[%clk 0:02:58.5]} 9. e5 {[%clk 0:02:49.3]} 9...
Bb7 {[%clk 0:02:47]} 10. Bg2 {[%clk 0:02:47.9]} 10... Kc7 {[%clk 0:02:47.7]} 11.
Be3 {[%clk 0:02:44.7]} 11... Ne7 {[%clk 0:02:45.3]} 12. Bc5 {[%clk 0:02:37.9]}
12... Nf5 {[%clk 0:02:41.1]} 13. Ne4 {[%clk 0:02:32.1]} 13... Rd8 {[%clk
0:02:14.2]} 14. Rd1 {[%clk 0:02:15.5]} 14... Bxc5 {[%clk 0:02:09.6]} 15. Nxc5
{[%clk 0:02:13]} 15... b4 {[%clk 0:02:03.5]} 16. Nb3 {[%clk 0:01:39.5]} 16...
Kb6 {[%clk 0:01:58.8]} 17. Ke2 {[%clk 0:01:23.3]} 17... a5 {[%clk 0:01:58]} 18.
a4 {[%clk 0:01:17.1]} 18... bxa3 {[%clk 0:01:06]} 19. bxa3 {[%clk 0:01:13.6]}
19... a4 {[%clk 0:01:06.4]} 20. Na1 {[%clk 0:01:00.6]} 20... Ba6+ {[%clk
0:00:58.4]} 21. Kf3 {[%clk 0:00:54.1]} 21... Bc4 {[%clk 0:00:44.8]} 22. Kf4
{[%clk 0:00:39]} 22... h6 {[%clk 0:00:24.5]} 23. Be4 {[%clk 0:00:38.9]} 23...
g5+ {[%clk 0:00:23.4]} 24. Kf3 {[%clk 0:00:38.7]} 24... Kc5 {[%clk 0:00:19.4]}
25. c3 {[%clk 0:00:31.9]} 25... Bb3 {[%clk 0:00:07.5]} 26. Rb1 {[%clk
0:00:25.7]} 26... Kc4 {[%clk 0:00:08]} 27. Bxc6 {[%clk 0:00:19.8]} 27... Rd2
{[%clk 0:00:05]} 28. Bb7 {[%clk 0:00:08.9]} 28... g4+ {[%clk 0:00:04.8]} 29.
Kxg4 {[%clk 0:00:04.9]} 29... Rxf2 {[%clk 0:00:05.3]} 30. Ba6+ {[%clk
0:00:04.8]} 30... Kxc3 {[%clk 0:00:01.5]} 31. Rhc1+ {[%clk 0:00:04.7]} 31... Kd4
{[%clk 0:00:02.2]} 32. Nxb3+ {[%clk 0:00:03.7]} 32... axb3 {[%clk 0:00:03]} 33.
Rc4+ {[%clk 0:00:02.6]} 33... Kxe5 {[%clk 0:00:03.3]} 34. Rxb3 {[%clk
0:00:02.5]} 34... Rxh2 {[%clk 0:00:02.9]} 35. Rb5+ {[%clk 0:00:02.1]} 35... Kf6
{[%clk 0:00:03.5]} 36. Kf4 {[%clk 0:00:02]} 36... h5 {[%clk 0:00:03]} 37. Rc6
{[%clk 0:00:01.6]} 37... Rf2+ {[%clk 0:00:03.6]} 38. Ke4 {[%clk 0:00:01.7]}
38... h4 {[%clk 0:00:03.9]} 39. g4 {[%clk 0:00:01.2]} 39... Ng3+ {[%clk
0:00:04.4]} 0-1